[Event "*** Titled Tuesday Blitz"]
[Site "Chess.com"]
[Date "2020.03.03"]
[Round "2"]
[White "burbur555"]
[Black "Vaathi_Coming"]
[Result "0-1"]
[WhiteElo "2592"]
[BlackElo "2841"]
[TimeControl "180+1"]
[EndTime "9:20:14 PST"]
[Termination "Vaathi_Coming won by resignation"]

1. c4 {[%clk 0:03:00.9]} 1... Nf6 {[%clk 0:02:58.8]} 2. g3 {[%clk 0:03:00.4]}
2... g6 {[%clk 0:02:58.5]} 3. Bg2 {[%clk 0:02:59.4]} 3... Bg7 {[%clk 0:02:59.1]}
4. d4 {[%clk 0:02:59.9]} 4... d5 {[%clk 0:02:56.9]} 5. cxd5 {[%clk 0:02:59.2]}
5... Nxd5 {[%clk 0:02:57.8]} 6. e4 {[%clk 0:02:58.2]} 6... Nb6 {[%clk
0:02:57.8]} 7. Ne2 {[%clk 0:02:57.8]} 7... O-O {[%clk 0:02:58.2]} 8. h3 {[%clk
0:02:56.3]} 8... Nc6 {[%clk 0:02:56.9]} 9. d5 {[%clk 0:02:55.8]} 9... Na5 {[%clk
0:02:57.1]} 10. O-O {[%clk 0:02:54.9]} 10... e6 {[%clk 0:02:57.3]} 11. Nbc3
{[%clk 0:02:50.3]} 11... exd5 {[%clk 0:02:55.4]} 12. exd5 {[%clk 0:02:49.6]}
12... Re8 {[%clk 0:02:55.6]} 13. Nd4 {[%clk 0:02:43.9]} 13... Nac4 {[%clk
0:02:52.4]} 14. b3 {[%clk 0:02:41.5]} 14... Nd6 {[%clk 0:02:49.6]} 15. Bb2
{[%clk 0:02:39.7]} 15... Bd7 {[%clk 0:02:31.5]} 16. Rc1 {[%clk 0:02:37.9]} 16...
h5 {[%clk 0:02:29.9]} 17. Qd2 {[%clk 0:02:31.2]} 17... Nbc4 {[%clk 0:02:24.4]}
18. bxc4 {[%clk 0:02:26.8]} 18... Nxc4 {[%clk 0:02:25.3]} 19. Qc2 {[%clk
0:02:03.7]} 19... Bxd4 {[%clk 0:02:13.2]} 20. Ba1 {[%clk 0:02:02.5]} 20... Nd6
{[%clk 0:01:51.7]} 21. Ne4 {[%clk 0:01:44.1]} 21... Bxa1 {[%clk 0:01:45.4]} 22.
Nxd6 {[%clk 0:01:44.7]} 22... cxd6 {[%clk 0:01:45.8]} 23. Rxa1 {[%clk
0:01:45.3]} 23... Rc8 {[%clk 0:01:45.9]} 24. Qd2 {[%clk 0:01:44.3]} 24... Rc5
{[%clk 0:01:39.2]} 25. Rfe1 {[%clk 0:01:41.8]} 25... a5 {[%clk 0:01:31.2]} 26.
Rxe8+ {[%clk 0:01:40.6]} 26... Qxe8 {[%clk 0:01:32.1]} 27. Re1 {[%clk
0:01:39.9]} 27... Qd8 {[%clk 0:01:31.5]} 28. Qf4 {[%clk 0:01:37.3]} 28... Bc8
{[%clk 0:01:21.9]} 29. g4 {[%clk 0:01:32.4]} 29... hxg4 {[%clk 0:01:21]} 30.
hxg4 {[%clk 0:01:32.1]} 30... b5 {[%clk 0:01:19.9]} 31. g5 {[%clk 0:01:31.9]}
31... Bf5 {[%clk 0:01:15.5]} 32. Qd2 {[%clk 0:01:15.6]} 32... b4 {[%clk
0:01:13]} 33. Re3 {[%clk 0:01:12.6]} 33... Rc2 {[%clk 0:01:09]} 34. Qd4 {[%clk
0:01:11.7]} 34... Rxa2 {[%clk 0:01:03.7]} 35. f4 {[%clk 0:00:50.1]} 35... Ra3
{[%clk 0:00:45.8]} 36. Re1 {[%clk 0:00:47.2]} 36... Rc3 {[%clk 0:00:45.6]} 37.
Kf2 {[%clk 0:00:46.3]} 37... Bg4 {[%clk 0:00:26.4]} 38. Qa7 {[%clk 0:00:31.4]}
38... Qc8 {[%clk 0:00:21]} 39. Qxa5 {[%clk 0:00:26.4]} 39... b3 {[%clk
0:00:19.9]} 40. Be4 {[%clk 0:00:22.2]} 40... b2 {[%clk 0:00:15.8]} 41. Qb4
{[%clk 0:00:21.5]} 41... Qc5+ {[%clk 0:00:13.9]} 42. Qxc5 {[%clk 0:00:20.7]}
42... Rxc5 {[%clk 0:00:14.8]} 43. Rb1 {[%clk 0:00:20.1]} 43... Rb5 {[%clk
0:00:14.4]} 44. Ke3 {[%clk 0:00:19.8]} 44... Rb4 {[%clk 0:00:14.7]} 45. Bd3
{[%clk 0:00:18.9]} 45... Kg7 {[%clk 0:00:14.3]} 46. Kd2 {[%clk 0:00:18.7]} 46...
Rxf4 {[%clk 0:00:13.2]} 47. Rxb2 {[%clk 0:00:16.3]} 47... Rd4 {[%clk 0:00:13.4]}
48. Ke3 {[%clk 0:00:13.8]} 48... Rxd5 {[%clk 0:00:13.4]} 49. Be4 {[%clk
0:00:13.3]} 49... Rxg5 {[%clk 0:00:11.9]} 50. Kf4 {[%clk 0:00:13.3]} 50... Kf6
{[%clk 0:00:12.2]} 51. Rb6 {[%clk 0:00:12.8]} 51... Be6 {[%clk 0:00:12.8]} 52.
Rxd6 {[%clk 0:00:12.3]} 52... Rc5 {[%clk 0:00:12.5]} 53. Rb6 {[%clk 0:00:11]}
53... g5+ {[%clk 0:00:12.8]} 54. Ke3 {[%clk 0:00:10.8]} 54... Ke5 {[%clk
0:00:13.7]} 55. Bd3 {[%clk 0:00:10.2]} 55... f5 {[%clk 0:00:13.4]} 56. Kd2
{[%clk 0:00:10.4]} 56... f4 {[%clk 0:00:12.8]} 57. Rb4 {[%clk 0:00:10.8]} 57...
Bf5 {[%clk 0:00:11.9]} 58. Be2 {[%clk 0:00:09.8]} 58... g4 {[%clk 0:00:10.4]}
59. Rb8 {[%clk 0:00:09.5]} 59... f3 {[%clk 0:00:10]} 60. Re8+ {[%clk 0:00:09.2]}
60... Kf4 {[%clk 0:00:10.2]} 61. Bd1 {[%clk 0:00:09.2]} 61... Rd5+ {[%clk
0:00:09.2]} 62. Ke1 {[%clk 0:00:08.5]} 62... g3 {[%clk 0:00:07]} 63. Rf8 {[%clk
0:00:07.8]} 63... Rxd1+ {[%clk 0:00:06.1]} 64. Kxd1 {[%clk 0:00:07.6]} 64... g2
{[%clk 0:00:06.3]} 65. Rg8 {[%clk 0:00:07]} 0-1

[Event "*** Titled Tuesday Blitz"]
[Site "Chess.com"]
[Date "2020.03.03"]
[Round "2"]
[White "IsaiahMcIntosh"]
[Black "sganerdene"]
[Result "0-1"]
[WhiteElo "2360"]
[BlackElo "2703"]
[TimeControl "180+1"]
[EndTime "9:20:17 PST"]
[Termination "sganerdene won by resignation"]

1. e4 {[%clk 0:03:00.9]} 1... c5 {[%clk 0:03:00.1]} 2. Nf3 {[%clk 0:03:00.9]}
2... e6 {[%clk 0:03:00.1]} 3. d4 {[%clk 0:03:00.9]} 3... cxd4 {[%clk 0:03:00.5]}
4. Nxd4 {[%clk 0:03:01.8]} 4... Nc6 {[%clk 0:03:01]} 5. Nc3 {[%clk 0:02:59.7]}
5... d6 {[%clk 0:03:01.3]} 6. Be3 {[%clk 0:02:55.3]} 6... Nf6 {[%clk 0:03:00.5]}
7. f3 {[%clk 0:02:49]} 7... Be7 {[%clk 0:03:00.5]} 8. Qd2 {[%clk 0:02:48.7]}
8... O-O {[%clk 0:03:00.5]} 9. Rd1 {[%clk 0:02:43.7]} 9... a6 {[%clk 0:02:59]}
10. Be2 {[%clk 0:02:43.4]} 10... e5 {[%clk 0:02:56.3]} 11. Nb3 {[%clk
0:02:40.7]} 11... Be6 {[%clk 0:02:56.3]} 12. O-O {[%clk 0:02:39.8]} 12... b5
{[%clk 0:02:56]} 13. Nd5 {[%clk 0:02:39]} 13... Bxd5 {[%clk 0:02:53.2]} 14. exd5
{[%clk 0:02:38.7]} 14... Nb8 {[%clk 0:02:53.4]} 15. Na5 {[%clk 0:02:35.9]} 15...
Qc7 {[%clk 0:02:52.4]} 16. Rc1 {[%clk 0:02:31.8]} 16... Bd8 {[%clk 0:02:46.7]}
17. b4 {[%clk 0:02:29]} 17... Nbd7 {[%clk 0:02:40.7]} 18. c4 {[%clk 0:02:28.7]}
18... bxc4 {[%clk 0:02:30.6]} 19. Rxc4 {[%clk 0:02:19]} 19... Qb8 {[%clk
0:02:30.5]} 20. Rfc1 {[%clk 0:01:52.9]} 20... Nb6 {[%clk 0:02:17.3]} 21. R4c2
{[%clk 0:01:37.2]} 21... Nbxd5 {[%clk 0:02:16.2]} 22. Nc6 {[%clk 0:01:37.3]}
22... Qb7 {[%clk 0:02:13.9]} 23. Bg5 {[%clk 0:01:30.8]} 23... Bb6+ {[%clk
0:02:11.5]} 24. Kh1 {[%clk 0:01:30.2]} 24... h6 {[%clk 0:02:11.4]} 25. Bxf6
{[%clk 0:01:27.5]} 25... Nxf6 {[%clk 0:02:11.3]} 26. Qxd6 {[%clk 0:01:23.9]}
26... Rfe8 {[%clk 0:02:07.9]} 27. Bc4 {[%clk 0:01:17.4]} 27... Be3 {[%clk
0:01:23.6]} 28. Rd1 {[%clk 0:01:09.8]} 28... Bd4 {[%clk 0:01:06.9]} 29. Bb3
{[%clk 0:01:01]} 29... Kh7 {[%clk 0:00:44.2]} 30. h3 {[%clk 0:00:47.3]} 30...
Rac8 {[%clk 0:00:41.4]} 31. Nxd4 {[%clk 0:00:43.6]} 31... Rcd8 {[%clk
0:00:41.4]} 32. Qc6 {[%clk 0:00:41.2]} 32... Qxc6 {[%clk 0:00:37.3]} 33. Rxc6
{[%clk 0:00:41]} 33... exd4 {[%clk 0:00:35.4]} 34. Bxf7 {[%clk 0:00:40.9]} 34...
Re2 {[%clk 0:00:34.4]} 35. Bc4 {[%clk 0:00:38.4]} 35... Rb2 {[%clk 0:00:32.8]}
36. Bb3 {[%clk 0:00:30.7]} 36... Nh5 {[%clk 0:00:31.5]} 37. Rc2 {[%clk
0:00:25.6]} 37... Rxc2 {[%clk 0:00:27.8]} 38. Bxc2+ {[%clk 0:00:25.7]} 38... g6
{[%clk 0:00:28.1]} 39. Bd3 {[%clk 0:00:25.8]} 39... Rd6 {[%clk 0:00:27.2]} 40.
Kh2 {[%clk 0:00:24.1]} 40... Nf4 {[%clk 0:00:27.5]} 41. g3 {[%clk 0:00:24.2]}
41... Nd5 {[%clk 0:00:27.8]} 42. Be4 {[%clk 0:00:20.3]} 42... Nxb4 {[%clk
0:00:26.4]} 43. a3 {[%clk 0:00:20.4]} 43... Na2 {[%clk 0:00:26.5]} 44. Bd3
{[%clk 0:00:17.4]} 44... Nc3 {[%clk 0:00:26.1]} 45. Re1 {[%clk 0:00:17.8]} 45...
Kg7 {[%clk 0:00:26.4]} 46. Re7+ {[%clk 0:00:17.8]} 46... Kf6 {[%clk 0:00:26.7]}
47. Ra7 {[%clk 0:00:18.4]} 47... Nb5 {[%clk 0:00:21.7]} 48. Ra8 {[%clk
0:00:16.1]} 48... Nxa3 {[%clk 0:00:21.4]} 49. Rxa6 {[%clk 0:00:12.3]} 49... Rxa6
{[%clk 0:00:20.3]} 50. Bxa6 {[%clk 0:00:13.2]} 50... Nc2 {[%clk 0:00:20.6]} 51.
Kg2 {[%clk 0:00:11.9]} 51... Nb4 {[%clk 0:00:20.8]} 52. Be2 {[%clk 0:00:11.2]}
52... d3 {[%clk 0:00:20.7]} 53. Bd1 {[%clk 0:00:11.5]} 53... Ke5 {[%clk
0:00:21.1]} 54. Kf2 {[%clk 0:00:11.9]} 54... Kd4 {[%clk 0:00:21.5]} 55. f4
{[%clk 0:00:12]} 55... Kc3 {[%clk 0:00:21.5]} 56. g4 {[%clk 0:00:11.7]} 56...
Kd2 {[%clk 0:00:21.3]} 57. Bf3 {[%clk 0:00:11.7]} 57... Kc1 {[%clk 0:00:21.1]}
58. f5 {[%clk 0:00:10.9]} 58... gxf5 {[%clk 0:00:21.4]} 59. gxf5 {[%clk
0:00:11.1]} 59... d2 {[%clk 0:00:19.2]} 60. Kg3 {[%clk 0:00:10.5]} 60... Nd5
{[%clk 0:00:18.3]} 61. Kh4 {[%clk 0:00:10.2]} 61... Nf6 {[%clk 0:00:16]} 62. Kg3
{[%clk 0:00:09.9]} 62... d1=Q {[%clk 0:00:16.1]} 63. Bxd1 {[%clk 0:00:08.4]}
63... Kxd1 {[%clk 0:00:17]} 64. Kf4 {[%clk 0:00:08.3]} 64... Ke2 {[%clk
0:00:16.8]} 65. Ke5 {[%clk 0:00:08.8]} 65... Nh7 {[%clk 0:00:17.1]} 66. f6
{[%clk 0:00:08.9]} 66... Kf3 {[%clk 0:00:17.3]} 67. f7 {[%clk 0:00:08.4]} 67...
Kg3 {[%clk 0:00:17.3]} 68. Kf5 {[%clk 0:00:08.8]} 68... Nf8 {[%clk 0:00:15.8]}
69. Kf6 {[%clk 0:00:07.8]} 69... h5 {[%clk 0:00:16.1]} 70. Kg5 {[%clk
0:00:06.8]} 70... h4 {[%clk 0:00:15.9]} 71. Kh6 {[%clk 0:00:04.5]} 71... Kxh3
{[%clk 0:00:15.8]} 72. Kg7 {[%clk 0:00:05]} 72... Nd7 {[%clk 0:00:16]} 0-1

[Event "*** Titled Tuesday Blitz"]
[Site "Chess.com"]
[Date "2020.03.03"]
[Round "2"]
[White "Hamisandwich"]
[Black "ChristianAlm"]
[Result "1-0"]
[WhiteElo "2689"]
[BlackElo "2345"]
[TimeControl "180+1"]
[EndTime "9:20:27 PST"]
[Termination "Hamisandwich won by resignation"]

1. Nf3 {[%clk 0:00:16.1]} 1... Nf6 {[%clk 0:02:59.4]} 2. g3 {[%clk 0:00:16.4]}
2... g6 {[%clk 0:03:00.3]} 3. Bg2 {[%clk 0:00:16.8]} 3... Bg7 {[%clk 0:03:01.2]}
4. O-O {[%clk 0:00:17.7]} 4... O-O {[%clk 0:03:02.1]} 5. c4 {[%clk 0:00:18.1]}
5... d5 {[%clk 0:03:03]} 6. cxd5 {[%clk 0:00:18.2]} 6... Nxd5 {[%clk 0:03:02.4]}
7. Nc3 {[%clk 0:00:19.1]} 7... Nxc3 {[%clk 0:03:02.5]} 8. bxc3 {[%clk 0:00:20]}
8... c5 {[%clk 0:03:02]} 9. d4 {[%clk 0:00:20.9]} 9... cxd4 {[%clk 0:03:01.7]}
10. cxd4 {[%clk 0:00:21.8]} 10... Nc6 {[%clk 0:03:01.7]} 11. e3 {[%clk
0:00:22.7]} 11... e5 {[%clk 0:03:01.1]} 12. dxe5 {[%clk 0:00:18.3]} 12... Nxe5
{[%clk 0:02:58.4]} 13. Nxe5 {[%clk 0:00:18.3]} 13... Bxe5 {[%clk 0:02:57.5]} 14.
Qxd8 {[%clk 0:00:15.6]} 14... Rxd8 {[%clk 0:02:56.6]} 15. Rb1 {[%clk 0:00:16.5]}
15... Rb8 {[%clk 0:02:55.8]} 16. Bb2 {[%clk 0:00:15.2]} 16... Bxb2 {[%clk
0:02:31.9]} 17. Rxb2 {[%clk 0:00:16.1]} 17... b6 {[%clk 0:02:30.6]} 18. Rc1
{[%clk 0:00:16.5]} 18... Be6 {[%clk 0:02:30.3]} 19. Bf3 {[%clk 0:00:15.5]} 19...
Rd7 {[%clk 0:02:28.9]} 20. a4 {[%clk 0:00:14.6]} 20... Rbd8 {[%clk 0:02:24.6]}
21. Kg2 {[%clk 0:00:12.7]} 21... Kg7 {[%clk 0:02:23.1]} 22. h3 {[%clk
0:00:12.5]} 22... Rd2 {[%clk 0:02:18.3]} 23. Rxd2 {[%clk 0:00:12.1]} 23... Rxd2
{[%clk 0:02:19.2]} 24. Rc7 {[%clk 0:00:13]} 24... Rd7 {[%clk 0:02:18.4]} 25. Rc3
{[%clk 0:00:12.3]} 25... Kf6 {[%clk 0:02:17.9]} 26. a5 {[%clk 0:00:12.3]} 26...
b5 {[%clk 0:02:11.6]} 27. a6 {[%clk 0:00:11.3]} 27... Rd6 {[%clk 0:02:08.4]} 28.
Bb7 {[%clk 0:00:10.4]} 28... b4 {[%clk 0:02:07.8]} 29. Rc1 {[%clk 0:00:08.3]}
29... Bd5+ {[%clk 0:01:58.4]} 30. Bxd5 {[%clk 0:00:07.7]} 30... Rxd5 {[%clk
0:01:59.3]} 31. Rc7 {[%clk 0:00:07.3]} 31... Rb5 {[%clk 0:01:55.9]} 32. Rb7
{[%clk 0:00:06.9]} 32... Ra5 {[%clk 0:01:48]} 33. Rxa7 {[%clk 0:00:06.3]} 33...
b3 {[%clk 0:01:39.7]} 34. Rb7 {[%clk 0:00:07.2]} 34... b2 {[%clk 0:01:39.5]} 35.
Rxb2 {[%clk 0:00:07.2]} 35... Rxa6 {[%clk 0:01:39.4]} 36. Rd2 {[%clk 0:00:08.1]}
36... h5 {[%clk 0:01:40.1]} 37. Rd4 {[%clk 0:00:08.1]} 37... Ke5 {[%clk
0:01:39.2]} 38. g4 {[%clk 0:00:09]} 38... hxg4 {[%clk 0:01:38.6]} 39. hxg4
{[%clk 0:00:09.9]} 39... g5 {[%clk 0:01:30.3]} 40. Rb4 {[%clk 0:00:09]} 40... f6
{[%clk 0:01:29.3]} 41. Kf3 {[%clk 0:00:09.3]} 41... Rc6 {[%clk 0:01:23.7]} 42.
Re4+ {[%clk 0:00:09.7]} 42... Kd5 {[%clk 0:01:23]} 43. Re8 {[%clk 0:00:10.6]}
43... Rc4 {[%clk 0:01:19.1]} 44. Rd8+ {[%clk 0:00:10.4]} 44... Ke5 {[%clk
0:01:17.5]} 45. Re8+ {[%clk 0:00:10.6]} 45... Kd5 {[%clk 0:01:17.3]} 46. Kg3
{[%clk 0:00:11]} 46... Ra4 {[%clk 0:01:16.8]} 47. f4 {[%clk 0:00:11.2]} 47...
Kd6 {[%clk 0:00:54.1]} 48. f5 {[%clk 0:00:09.6]} 48... Kd5 {[%clk 0:00:51.3]}
49. Re6 {[%clk 0:00:10.1]} 49... Re4 {[%clk 0:00:41.8]} 50. Rxf6 {[%clk
0:00:10.4]} 50... Rxe3+ {[%clk 0:00:41.1]} 51. Kf2 {[%clk 0:00:11]} 51... Re4
{[%clk 0:00:38.7]} 52. Kf3 {[%clk 0:00:11.4]} 52... Rf4+ {[%clk 0:00:35]} 53.
Kg3 {[%clk 0:00:11.5]} 53... Ke4 {[%clk 0:00:32.7]} 54. Re6+ {[%clk 0:00:10.8]}
54... Kd3 {[%clk 0:00:33]} 55. Rg6 {[%clk 0:00:11.2]} 55... Ke3 {[%clk
0:00:29.4]} 56. Rxg5 {[%clk 0:00:11.5]} 56... Rf3+ {[%clk 0:00:30.3]} 57. Kh4
{[%clk 0:00:11.9]} 57... Kf4 {[%clk 0:00:29.7]} 58. Rg6 {[%clk 0:00:12.8]} 58...
Rf1 {[%clk 0:00:28.4]} 59. Kh3 {[%clk 0:00:12.5]} 59... Rf3+ {[%clk 0:00:24.8]}
60. Kg2 {[%clk 0:00:12.2]} 60... Rg3+ {[%clk 0:00:21.5]} 61. Kf2 {[%clk
0:00:12.5]} 61... Ra3 {[%clk 0:00:20.9]} 62. Ke2 {[%clk 0:00:12.7]} 62... Re3+
{[%clk 0:00:19.5]} 63. Kd2 {[%clk 0:00:13]} 63... Re8 {[%clk 0:00:19.8]} 64. f6
{[%clk 0:00:12.7]} 64... Ke5 {[%clk 0:00:19.6]} 65. g5 {[%clk 0:00:12.7]} 65...
Kf5 {[%clk 0:00:19.8]} 66. Rg7 {[%clk 0:00:12.9]} 66... Rf8 {[%clk 0:00:20]} 67.
f7 {[%clk 0:00:12.3]} 67... Ke6 {[%clk 0:00:20.1]} 68. g6 {[%clk 0:00:12.7]}
68... Kf6 {[%clk 0:00:19.9]} 69. Rg8 {[%clk 0:00:12.9]} 1-0

[Event "*** Titled Tuesday Blitz"]
[Site "Chess.com"]
[Date "2020.03.03"]
[Round "2"]
[White "adricalderon8"]
[Black "Jumbo"]
[Result "1/2-1/2"]
[WhiteElo "2393"]
[BlackElo "2724"]
[TimeControl "180+1"]
[EndTime "9:20:28 PST"]
[Termination "Game drawn - insufficient material"]

1. e4 {[%clk 0:03:00.9]} 1... c5 {[%clk 0:02:59.3]} 2. Nf3 {[%clk 0:02:59.7]}
2... d6 {[%clk 0:02:59.7]} 3. d4 {[%clk 0:02:59.3]} 3... cxd4 {[%clk 0:03:00.6]}
4. Nxd4 {[%clk 0:03:00.2]} 4... Nf6 {[%clk 0:03:01.2]} 5. Nc3 {[%clk 0:03:00.8]}
5... a6 {[%clk 0:03:01]} 6. h4 {[%clk 0:03:01.5]} 6... e5 {[%clk 0:02:58.9]} 7.
Nb3 {[%clk 0:02:59.9]} 7... b5 {[%clk 0:02:49.6]} 8. Bg5 {[%clk 0:02:55.5]} 8...
Be6 {[%clk 0:02:43.4]} 9. Nd5 {[%clk 0:02:50.6]} 9... Nbd7 {[%clk 0:02:42.9]}
10. f3 {[%clk 0:02:40.5]} 10... Be7 {[%clk 0:02:35.6]} 11. Be3 {[%clk
0:02:38.8]} 11... Rc8 {[%clk 0:02:17.3]} 12. Qd2 {[%clk 0:02:27.1]} 12... Nxd5
{[%clk 0:02:13.1]} 13. exd5 {[%clk 0:02:26.6]} 13... Bf5 {[%clk 0:02:13.7]} 14.
Bd3 {[%clk 0:02:16.1]} 14... Bxh4+ {[%clk 0:02:08.5]} 15. Kf1 {[%clk 0:02:15.4]}
15... Bxd3+ {[%clk 0:02:04.9]} 16. Qxd3 {[%clk 0:02:15.6]} 16... g6 {[%clk
0:02:00.1]} 17. Ke2 {[%clk 0:02:03]} 17... Be7 {[%clk 0:01:51.5]} 18. a4 {[%clk
0:01:54]} 18... b4 {[%clk 0:01:41.1]} 19. a5 {[%clk 0:01:51.7]} 19... Qc7 {[%clk
0:01:39.2]} 20. Rhc1 {[%clk 0:01:48.9]} 20... Qb7 {[%clk 0:01:39]} 21. Nd2
{[%clk 0:01:13.3]} 21... Nf6 {[%clk 0:01:30.7]} 22. Nc4 {[%clk 0:01:08]} 22...
Qxd5 {[%clk 0:01:08.7]} 23. Nb6 {[%clk 0:01:03]} 23... Qxd3+ {[%clk 0:00:58.4]}
24. cxd3 {[%clk 0:01:03.2]} 24... Rxc1 {[%clk 0:00:40]} 25. Rxc1 {[%clk
0:01:02.8]} 25... O-O {[%clk 0:00:40.1]} 26. Bg5 {[%clk 0:00:56.8]} 26... Rb8
{[%clk 0:00:20.2]} 27. Bxf6 {[%clk 0:00:52.7]} 27... Bxf6 {[%clk 0:00:21.1]} 28.
Nd7 {[%clk 0:00:53.4]} 28... Bg5 {[%clk 0:00:20.9]} 29. Nxb8 {[%clk 0:00:52]}
29... Bxc1 {[%clk 0:00:20.1]} 30. Nxa6 {[%clk 0:00:52.7]} 30... Bxb2 {[%clk
0:00:19.9]} 31. Nxb4 {[%clk 0:00:51.7]} 31... Kf8 {[%clk 0:00:18.2]} 32. a6
{[%clk 0:00:51.7]} 32... Bd4 {[%clk 0:00:18.2]} 33. Nc6 {[%clk 0:00:52.4]} 33...
Bb6 {[%clk 0:00:17.7]} 34. a7 {[%clk 0:00:53.1]} 34... Bxa7 {[%clk 0:00:17.9]}
35. Nxa7 {[%clk 0:00:54]} 35... Ke7 {[%clk 0:00:18.4]} 36. Nb5 {[%clk
0:00:53.1]} 36... Ke6 {[%clk 0:00:18.5]} 37. Ke3 {[%clk 0:00:52.7]} 37... h5
{[%clk 0:00:18.7]} 38. d4 {[%clk 0:00:51.9]} 38... Kd5 {[%clk 0:00:17.4]} 39.
Nc3+ {[%clk 0:00:48.6]} 39... Kc4 {[%clk 0:00:17.5]} 40. Ne2 {[%clk 0:00:46.7]}
40... Kd5 {[%clk 0:00:17]} 41. Kd3 {[%clk 0:00:44.6]} 41... h4 {[%clk
0:00:12.3]} 42. Nc3+ {[%clk 0:00:44.3]} 42... Kc6 {[%clk 0:00:11.2]} 43. Kc4
{[%clk 0:00:41.5]} 43... f5 {[%clk 0:00:11.4]} 44. Nd5 {[%clk 0:00:37.8]} 44...
Kd7 {[%clk 0:00:10.3]} 45. f4 {[%clk 0:00:29.3]} 45... exf4 {[%clk 0:00:08.6]}
46. Nxf4 {[%clk 0:00:29]} 46... g5 {[%clk 0:00:09]} 47. Nh3 {[%clk 0:00:28.2]}
47... g4 {[%clk 0:00:09.4]} 48. Nf4 {[%clk 0:00:28.6]} 48... Kc6 {[%clk
0:00:09.6]} 49. d5+ {[%clk 0:00:27.9]} 49... Kb6 {[%clk 0:00:09.2]} 50. Kb4
{[%clk 0:00:28.4]} 50... Ka6 {[%clk 0:00:09]} 51. Kc4 {[%clk 0:00:24.4]} 51...
Kb6 {[%clk 0:00:09.2]} 52. Kd4 {[%clk 0:00:24.9]} 52... Kb5 {[%clk 0:00:09.5]}
53. Ke3 {[%clk 0:00:15.7]} 53... Kc4 {[%clk 0:00:09.3]} 54. Ng6 {[%clk
0:00:13.1]} 54... h3 {[%clk 0:00:08.2]} 55. gxh3 {[%clk 0:00:13.4]} 55... gxh3
{[%clk 0:00:09.1]} 56. Kf3 {[%clk 0:00:12]} 56... h2 {[%clk 0:00:08]} 57. Kg2
{[%clk 0:00:11.4]} 57... Kxd5 {[%clk 0:00:08.9]} 58. Kxh2 {[%clk 0:00:11.7]}
58... Ke4 {[%clk 0:00:09.5]} 59. Kg2 {[%clk 0:00:12]} 59... Ke3 {[%clk
0:00:09.1]} 60. Kh2 {[%clk 0:00:12.1]} 60... d5 {[%clk 0:00:08.8]} 61. Kg3
{[%clk 0:00:10.7]} 61... d4 {[%clk 0:00:08.7]} 62. Nf4 {[%clk 0:00:11.3]} 62...
Ke4 {[%clk 0:00:08.7]} 63. Ne2 {[%clk 0:00:10.1]} 63... d3 {[%clk 0:00:08.9]}
64. Nc3+ {[%clk 0:00:10]} 64... Ke3 {[%clk 0:00:08.5]} 65. Nd1+ {[%clk
0:00:09.3]} 65... Ke2 {[%clk 0:00:08.9]} 66. Nc3+ {[%clk 0:00:09.5]} 66... Kd2
{[%clk 0:00:09.1]} 67. Nd5 {[%clk 0:00:09.6]} 67... Ke2 {[%clk 0:00:08.2]} 68.
Nf4+ {[%clk 0:00:08.3]} 68... Ke3 {[%clk 0:00:08.6]} 69. Nxd3 {[%clk 0:00:08.9]}
69... Kxd3 {[%clk 0:00:09]} 70. Kf4 {[%clk 0:00:09.6]} 70... Kd4 {[%clk
0:00:09.4]} 71. Kxf5 {[%clk 0:00:10.5]} 1/2-1/2